fUSD/lending_fUSD_20240804
["ID","MTS","AMOUNT","RATE_DAILY","PERIOD"]
[334148339,1722795121749,-790.61891375,0.00011105,2]
[334148340,1722795121790,-692.80235,0.00011105,2]
[334148341,1722795121832,-291.39045799,0.00011105,2]
[334148342,1722795121872,-1222.86024952,0.00011105,2]
[334148343,1722795121917,-155.0,0.00011105,2]
[334148344,1722795121957,-899.52863358,0.00011105,2]
[334148345,1722795122091,-879.73542615,0.00011105,2]
[334148346,1722795122145,-7578.17487905,0.00011105,2]
[334148347,1722795122201,-7578.17487905,0.00011105,2]
[334148348,1722795122260,-1893.59364502,0.00011105,2]
[334148349,1722795122300,-1040.13675084,0.00013398,2]
[334148350,1722795122339,-265.17493776,0.00013398,2]
[334148351,1722795122454,150.0,0.00011104,2]
[334148352,1722795122510,300.0,0.00011104,2]
[334148353,1722795126657,3929.26954543,0.00011105,2]
[334148354,1722795126699,6954.07559546,0.00011105,2]
[334148355,1722795126741,7578.17487905,0.00011105,2]
[334148356,1722795126783,7578.17487905,0.00011105,2]
[334148357,1722795126825,4205.55710719,0.00011105,2]
[334148358,1722795126867,7578.17487905,0.00011105,2]
[334148359,1722795126908,7578.17487905,0.00011105,2]
[334148360,1722795126951,4598.39823572,0.00011105,2]
[334148361,1722795133549,155.0,0.00013398,2]
[334148362,1722795141993,2824.77664333,0.00013398,2]
[334148363,1722795202953,500.0,0.00026945,120]
[334148364,1722795214047,200.0,0.00026991,120]
[334148371,1722795802317,500.0,0.00026991,120]
[334148372,1722795813852,200.0,0.00026999,120]
[334148373,1722795951072,221.29,0.00026377,120]
[334148380,1722796175422,-210.7719622,0.000109,2]
[334148381,1722796175468,-2383.41023496,0.000109,2]
[334148382,1722796175510,-644.71699408,0.000109,2]
[334148383,1722796175559,-150.0,0.00010989,2]
[334148384,1722796175605,-229.5,0.0001099,2]
[334148385,1722796175651,-229.5,0.0001099,2]
[334148386,1722796175697,-229.5,0.0001099,2]
[334148387,1722796175744,-229.5,0.0001099,2]
[334148388,1722796175789,-229.5,0.0001099,2]
[334148389,1722796175834,-229.5,0.0001099,2]
[334148390,1722796175880,-229.5,0.0001099,2]
[334148391,1722796175927,-229.5,0.0001099,2]
[334148392,1722796175974,-229.5,0.0001099,2]
[334148393,1722796176022,-229.5,0.0001099,2]
[334148394,1722796176066,-229.5,0.0001099,2]
[334148395,1722796176112,-229.5,0.0001099,2]
[334148396,1722796176158,-229.5,0.0001099,2]
[334148397,1722796176203,-229.5,0.0001099,2]
[334148398,1722796176249,-229.5,0.0001099,2]
[334148399,1722796176294,-229.5,0.0001099,2]
[334148400,1722796176340,-229.5,0.0001099,2]
[334148401,1722796176383,-229.5,0.0001099,2]
[334148402,1722796176429,-229.5,0.0001099,2]
[334148403,1722796176475,-229.5,0.0001099,2]
[334148404,1722796176522,-229.5,0.0001099,2]
[334148405,1722796176569,-229.5,0.0001099,2]
[334148406,1722796176692,-229.5,0.0001099,2]
[334148407,1722796176735,-229.5,0.0001099,2]
[334148408,1722796176781,-229.5,0.0001099,2]
[334148409,1722796176826,-188.69315751,0.0001099,2]
[334148410,1722796176891,-40.80684249,0.0001099,2]
[334148411,1722796176939,-229.5,0.0001099,2]
[334148412,1722796176986,-229.5,0.0001099,2]
[334148413,1722796177035,-229.5,0.0001099,2]
[334148414,1722796177081,-229.5,0.0001099,2]
[334148415,1722796177125,-2929.5,0.00010999,2]
[334148416,1722796177169,-369.16735973,0.00010999,2]
[334148417,1722796177220,-5057.61814653,0.00011,2]
[334148418,1722796177287,-9315.09234875,0.00011,2]
[334148419,1722796177356,-9315.09234875,0.00011,2]
[334148420,1722796177435,-792.75315169,0.00011,2]
[334148453,1722796233959,-153.52,0.0001099,2]
[334148455,1722796233970,-300.0,0.00010999,2]
[334148457,1722796233980,-2901.78801769,0.00011,2]
[334148458,1722796234045,-469.02406266,0.00011,2]
[334148459,1722796234058,-931.590165,0.00011,2]
[334148460,1722796234071,-5490.48900003,0.00011,2]
[334148461,1722796234085,-291425.88138943,0.00011,2]
[334148462,1722796234135,-415.22091175,0.00011,2]
[334148463,1722796234148,-4591.446,0.00011,2]
[334148464,1722796234163,-449621.6781032,0.00011,2]
[334148465,1722796234182,-5390.9073649,0.00011,2]
[334148466,1722796234196,-938.21279485,0.00011,2]
[334148467,1722796234209,-877.305,0.00011,2]
[334148468,1722796234222,-702.12194755,0.00011,2]
[334148469,1722796234236,-3818.744,0.00011,2]
[334148491,1722796234654,-33985.75,0.00011,2]
[334148493,1722796234667,-776.61022031,0.00011,2]
[334148531,1722796237912,-6846.68888014,0.00011,2]
[334148532,1722796237924,-377.855,0.00011,2]
[334148533,1722796239438,-5655.91647298,0.00011,2]
[334148557,1722796240138,-5782.29098957,0.00011,2]
[334148558,1722796240153,-10711.85330106,0.00011,2]
[334148559,1722796240168,-6149.82528301,0.00011,2]
[334148560,1722796240185,-13635.92990115,0.00011,2]
[334148561,1722796240212,-2926.3912261,0.00011,2]
[334148562,1722796240319,-539604.87446099,0.00011,2]
[334148563,1722796240381,-292.32,0.00011,2]
[334148776,1722796242800,-5430.86238152,0.00011,2]
[334148778,1722796242814,-521.31163644,0.00011,2]
[334148799,1722796243014,-701.78153052,0.00011,2]
[334148801,1722796243028,-708.96198506,0.00011,2]
[334148803,1722796243041,-2161.62634002,0.00011,2]
[334148806,1722796243055,-754.9399989,0.00011,2]
[334148808,1722796243069,-305.67881732,0.00011,2]
[334148810,1722796243083,-1082.91734936,0.00011,2]
[334148813,1722796243096,-697.23822464,0.00011,2]
[334149108,1722796246384,-2934.77971038,0.00011,2]
[334149110,1722796246395,-675.025,0.00011,2]
[334149112,1722796246407,-1364.98019,0.00011,2]
[334149115,1722796246418,-352.24,0.00011,2]
[334149117,1722796246429,-237173.17428315,0.00011,2]
[334149148,1722796246737,-3645.50996052,0.00011,2]
[334149151,1722796246753,-10992.66936184,0.00011,2]
[334149153,1722796246765,-3265.01060924,0.00011,2]
[334149163,1722796247006,-310.75725806,0.00011,2]
[334149164,1722796247018,-37614.10693623,0.00011,2]
[334149165,1722796247030,-1654.18367198,0.00011,2]
[334149166,1722796247042,-1818.0465748,0.00011,2]
[334149167,1722796247120,-719.95798759,0.00011,2]
[334149168,1722796247132,-1006.8,0.00011,2]
[334149169,1722796247978,-193918.3091238,0.00011,2]
[334149170,1722796247993,-29687.05285376,0.00011,2]
[334149171,1722796248005,-747.40697802,0.00011,2]
[334149172,1722796248016,-505.14,0.00011,2]
[334149173,1722796248028,-292.064,0.00011,2]
[334149174,1722796248044,-912.34615092,0.00011,2]
[334149175,1722796248055,-1069.70961606,0.00011,2]
[334149176,1722796248067,-1734.84626364,0.00011,2]
[334149177,1722796248080,-856.20926424,0.00011,2]
[334149178,1722796248092,-873.02264543,0.00011,2]
[334149179,1722796248108,-3694.55916163,0.00011,2]
[334149180,1722796248121,-1638.75847345,0.00011,2]
[334149181,1722796248133,-255.95603174,0.00011,2]
[334149182,1722796248146,-468.08795167,0.00011,2]
[334149183,1722796248158,-2448.9903007,0.00011,2]
[334149184,1722796248267,-907.5,0.00011,2]
[334149185,1722796248279,-2427.55502287,0.00011,2]
[334149186,1722796248291,-13296.24095148,0.00011,2]
[334149187,1722796248303,-487845.15554944,0.00011,2]
[334149188,1722796248350,-631.7,0.00011,2]
[334149189,1722796248361,-2936.12748951,0.00011,2]
[334149190,1722796248374,-675.575,0.00011,2]
[334149191,1722796248386,-1370.98775275,0.00011,2]
[334149192,1722796248398,-3946.5,0.00011,2]
[334149193,1722796248412,-7265.7,0.00011,2]
[334149194,1722796248424,-706.3125,0.00011,2]
[334149202,1722796403450,500.0,0.00026999,120]
[334149203,1722796413919,200.0,0.00027,120]
[334149212,1722797001384,500.0,0.00026999,120]
[334149213,1722797011881,200.0,0.00027,120]
[334149214,1722797013535,237.81,0.00026411,120]
[334149215,1722797050587,2000.0,0.00027,120]
[334149216,1722797221460,300.0,0.0001078,2]
[334149217,1722797232840,-8996.241186,0.00010781,2]
[334149221,1722797324457,-300.0,0.00010779,2]
[334149222,1722797324501,-1268.17340653,0.0001078,2]
[334149223,1722797324545,-314.9890508,0.0001078,2]
[334149243,1722797436144,-291.43745391,0.0001078,2]
[334149244,1722797436155,-170.34699346,0.0001078,2]
[334149245,1722797436165,-155.0,0.0001078,2]
[334149246,1722797436175,-1750.0,0.0001078,2]
[334149247,1722797436185,-274.80026463,0.0001078,2]
[334149248,1722797436196,-302.5237089,0.0001078,2]
[334149249,1722797436240,-8688.44368419,0.0001078,2]
[334149250,1722797436251,-200.0,0.0001078,2]
[334149251,1722797436261,-158.92239483,0.0001078,2]
[334149252,1722797436271,-10050.02645028,0.0001078,2]
[334149253,1722797436283,-43473.79283332,0.0001078,2]
[334149254,1722797436295,-5866.8102,0.0001078,2]
[334149255,1722797436337,-67130.70885863,0.0001078,2]
[334149256,1722797436401,-1345.28105739,0.0001078,2]
[334149338,1722797438062,-2735.53908701,0.0001078,2]
[334149339,1722797438073,-4686.83086686,0.0001078,2]
[334149340,1722797438085,-14500.00000031,0.0001078,2]
[334149341,1722797438199,-889.92097399,0.0001078,2]
[334149342,1722797438216,-18660.36569553,0.0001078,2]
[334149343,1722797438228,-14351.94777488,0.0001078,2]
[334149344,1722797438238,-20287.53447791,0.0001078,2]
[334149345,1722797438295,-92.39637392,0.0001078,2]
[334149346,1722797438305,-372.30090324,0.0001078,2]
[334149371,1722797439583,-406.46916604,0.0001078,2]
[334149373,1722797439598,-854.56131612,0.0001078,2]
[334149375,1722797439610,-1370.57775499,0.0001078,2]
[334149376,1722797439622,-412.76332321,0.0001078,2]
[334149377,1722797439634,-411.69952763,0.0001078,2]
[334149378,1722797439644,-1223.05007541,0.0001078,2]
[334149379,1722797439655,-299.71268725,0.0001078,2]
[334149380,1722797439665,-2331.39853397,0.0001078,2]
[334149381,1722797439676,-1049.72746869,0.0001078,2]
[334149382,1722797439686,-1309.36747265,0.0001078,2]
[334149383,1722797439696,-227.61995131,0.0001078,2]
[334149384,1722797439712,-790.61891375,0.0001078,2]
[334149385,1722797439722,-485.35658426,0.0001078,2]
[334149386,1722797439731,-692.80235,0.0001078,2]
[334149387,1722797439741,-155.0,0.0001078,2]
[334149389,1722797439751,-363.80792903,0.0001078,2]
[334149390,1722797439761,-7574.55293758,0.0001078,2]
[334149392,1722797439771,-871.75845966,0.0001078,2]
[334149394,1722797439781,-155.0,0.0001078,2]
[334149396,1722797439791,-1268.17340653,0.0001078,2]
[334149398,1722797439801,-1284.33399062,0.0001078,2]
[334149401,1722797439812,-425.65743734,0.0001078,2]
[334149402,1722797439822,-1268.17340653,0.0001078,2]
[334149404,1722797439832,-155.0,0.0001078,2]
[334149406,1722797439843,-155.0,0.0001078,2]
[334149408,1722797439852,-20351.04124008,0.00010781,2]
[334149410,1722797439864,-816.07128584,0.00010781,2]
[334149413,1722797439875,-653.67901261,0.00010781,2]
[334149415,1722797439887,-613.21,0.00010781,2]
[334149417,1722797439899,-292.755,0.00010781,2]
[334149419,1722797439910,-569.78816292,0.00010781,2]
[334149421,1722797439923,-4052.72401042,0.00010781,2]
[334149424,1722797439936,-37102.9931221,0.00010781,2]
[334149450,1722797440350,-1186.14207486,0.00010781,2]
[334149451,1722797440362,-1466.16542561,0.00010781,2]
[334149452,1722797440375,-1480.41536144,0.00010781,2]
[334149453,1722797440387,-1587.91856917,0.00010781,2]
[334149454,1722797440898,-2288.18332378,0.00010781,2]
[334149455,1722797441257,-11433.18166641,0.00010781,2]
[334149456,1722797441294,-2.5e-07,0.00010781,2]
[334149458,1722797441306,-1244.6844767,0.00010781,2]
[334149460,1722797441317,-90887.88965639,0.00010781,2]
[334149659,1722797443088,-465.91642542,0.00010781,2]
[334149662,1722797443097,-177.34217462,0.000109,2]
[334149665,1722797443106,-262.45211734,0.000109,2]
[334149668,1722797443115,-785.90367586,0.000109,2]
[334149670,1722797443124,-174.01038036,0.000109,2]
[334149671,1722797443133,-1053.92556449,0.000109,2]
[334149673,1722797443143,-2286.73780582,0.000109,2]
[334149675,1722797443152,-153.36,0.0001099,2]
[334149677,1722797443162,-930.71217096,0.00010997,2]
[334149679,1722797443171,-773.70214534,0.00011,10]
[334149681,1722797443181,-276376.32193635,0.00011,2]
[334149683,1722797443193,-540.5,0.00011,2]
[334149686,1722797443214,-544.64940281,0.00011,2]
[334149688,1722797443226,-24569.28956394,0.00011,2]
[334149691,1722797443238,-623.2797952,0.00011,2]
[334149693,1722797443249,-655.16092701,0.00011,2]
[334149697,1722797443278,-822.64354316,0.00011,2]
[334149704,1722797443338,-1860.0,0.00011,2]
[334149770,1722797444230,-18727.74608,0.00011,2]
[334149772,1722797444241,-29072.25392,0.00011,2]
[334149774,1722797444253,-96855.73567803,0.00011,2]
[334149776,1722797444265,-61096.50033496,0.00011,2]
[334149871,1722797446534,-26999.99999993,0.00011,2]
[334149872,1722797446546,-17535.00000001,0.00011,2]
[334149873,1722797446559,-569.82632,0.00011,2]
[334149874,1722797446570,-256.27841376,0.00011,2]
[334149875,1722797446583,-2068.6983278,0.00011,2]
[334149876,1722797446599,-362.2774596,0.00011,2]
[334149877,1722797446726,-1170999.95155993,0.00011,2]
[334149880,1722797446744,-409579.20420515,0.00011,2]
[334149882,1722797446756,-876.45000001,0.00011,2]
[334149884,1722797446767,-4774.74563247,0.00011,2]
[334149886,1722797446779,-1214.69466643,0.00011,2]
[334149917,1722797521573,-300.0,0.00010499,2]
[334149918,1722797521619,-574.01423561,0.000105,2]
[334149921,1722797599405,500.0,0.00027,120]
[334149922,1722797611042,200.0,0.00027,120]
[334149925,1722798052738,153.89,9.438e-05,2]
[334149926,1722798074737,1223.05007541,9.438e-05,2]
[334149927,1722798076047,1284.33399062,9.438e-05,2]
[334149928,1722798076516,1404.35230839,9.438e-05,2]
[334149929,1722798076574,4073.87414257,9.438e-05,2]
[334149930,1722798076622,6110.3780835,9.438e-05,2]
[334149931,1722798076670,4042.89575511,9.438e-05,2]
[334149932,1722798076718,4197.60662428,9.438e-05,2]
[334149933,1722798076765,550.82393798,9.438e-05,2]
[334149934,1722798078421,244.93615065,9.438e-05,2]
[334149935,1722798080696,790.05901625,9.438e-05,2]
[334149936,1722798086237,1370.57775499,9.438e-05,2]
[334149937,1722798087033,363.80792903,9.438e-05,2]
[334149938,1722798088042,291.43745391,9.438e-05,2]
[334149939,1722798090804,155.0,9.438e-05,2]
[334149940,1722798091348,871.75845966,9.438e-05,2]
[334149941,1722798092091,376.37601917,9.438e-05,2]
[334149942,1722798092133,49.28141817,9.438e-05,2]
[334149943,1722798092188,485.35658426,9.438e-05,2]
[334149944,1722798092501,1268.17340653,9.438e-05,2]
[334149945,1722798099860,692.80235,9.438e-05,2]
[334149946,1722798100547,168.33858032,9.438e-05,2]
[334149947,1722798102092,2290.29726606,9.438e-05,2]
[334149948,1722798102135,4066.57176164,9.438e-05,2]
[334149949,1722798102177,1217.68390988,9.438e-05,2]
[334149950,1722798104286,3140.97485167,9.438e-05,2]
[334149951,1722798104334,5264.83364608,9.438e-05,2]
[334149952,1722798104382,175285.41530045,9.438e-05,2]
[334149953,1722798105184,1012.25719583,9.438e-05,2]
[334149954,1722798107276,227.61995131,9.438e-05,2]
[334149955,1722798116389,1370.57775499,9.438e-05,2]
[334149956,1722798117298,9265.76765772,9.438e-05,2]
[334149957,1722798122055,425.65743734,9.438e-05,2]
[334149958,1722798122089,485.35658426,9.438e-05,2]
[334149959,1722798158244,20379.93085183,9.438e-05,2]
[334149960,1722798178997,1284.33399062,9.438e-05,2]
[334149961,1722798179455,1268.17340653,9.438e-05,2]
[334149962,1722798180970,363.80792903,9.438e-05,2]
[334149963,1722798185030,291.42187984,9.438e-05,2]
[334149964,1722798188781,262.01031941,9.438e-05,2]
[334149965,1722798195994,1284.33399062,9.438e-05,2]
[334149966,1722798200039,7574.55293758,9.438e-05,2]
[334149967,1722798201950,500.0,0.00027,120]
[334149968,1722798206316,871.33930854,9.438e-05,2]
[334149969,1722798206767,9265.76765772,9.438e-05,2]
[334149970,1722798208117,227.61995131,9.438e-05,2]
[334149971,1722798211182,200.0,0.00027,120]
[334149972,1722798212260,183691.2237982,9.438e-05,2]
[334149973,1722798222436,425.65743734,9.438e-05,2]
[334149974,1722798224481,961.890584,9.438e-05,2]
[334149975,1722798243446,1370.57775499,9.438e-05,2]
[334149976,1722798258020,14281.3115042,9.438e-05,2]
[334149977,1722798259486,481.94871116,9.438e-05,2]
[334149978,1722798290455,1268.17340653,9.438e-05,2]
[334149979,1722798297536,7574.55293758,9.438e-05,2]
[334149980,1722798301035,692.80235,9.438e-05,2]
[334149981,1722798305464,1268.17340653,9.438e-05,2]
[334149982,1722798308000,1284.33399062,9.438e-05,2]
[334149983,1722798308104,227.61995131,9.438e-05,2]
[334149984,1722798311146,9265.76765772,9.438e-05,2]
[334149985,1722798317744,327.15,9.33e-05,2]
[334149986,1722798321064,425.65743734,9.438e-05,2]
[334149987,1722798324271,183691.2237982,9.438e-05,2]
[334149988,1722798336076,425.65743734,9.438e-05,2]
[334149989,1722798341258,130556.55778134,9.438e-05,2]
[334149990,1722798341285,53134.66601686,9.438e-05,2]
[334149991,1722798346489,1370.57775499,9.438e-05,2]
[334149992,1722798389525,692.80235,9.438e-05,2]
[334149993,1722798392550,7574.55293758,9.438e-05,2]
[334149994,1722798405655,9265.76765772,9.438e-05,2]
[334149995,1722798410006,1284.33399062,9.438e-05,2]
[334149996,1722798413103,227.61995131,9.438e-05,2]
[334149997,1722798416642,9265.76765772,9.438e-05,2]
[334149998,1722798424996,1284.33399062,9.438e-05,2]
[334149999,1722798435462,1268.17340653,9.438e-05,2]
[334150000,1722798436215,1223.05007541,9.438e-05,2]
[334150001,1722798441270,183691.2237982,9.438e-05,2]
[334150002,1722798442066,424.74618432,9.438e-05,2]
[334150003,1722798476032,692.80235,9.438e-05,2]
[334150004,1722798492562,3909.6774739,9.438e-05,2]
[334150005,1722798518132,227.61995131,9.438e-05,2]
[334150010,1722798533214,1223.05007541,9.438e-05,2]
[334150011,1722798536277,183691.2237982,9.438e-05,2]
[334150012,1722798542655,9265.76765772,9.438e-05,2]
[334150018,1722798556038,1284.33399062,9.438e-05,2]
[334150019,1722798561039,692.80235,9.438e-05,2]
[334150020,1722798570501,889.95134063,9.438e-05,2]
[334150022,1722798599540,-8848.15295208,0.000105,2]
[334150023,1722798599645,-1942.32234086,0.000105,2]
[334150024,1722798610965,1223.05007541,9.438e-05,2]
[334150025,1722798623628,227.61995131,9.438e-05,2]
[334150035,1722798632691,-71.62385236,0.000105,2]
[334150036,1722798632702,-7282.75614764,0.000109,2]
[334150037,1722798632730,-1175.66,0.000109,2]
[334150038,1722798632742,-1179.14966214,0.000109,2]
[334150039,1722798632753,-8643.70819022,0.000109,2]
[334150040,1722798632763,-169.27176964,0.000109,2]
[334150041,1722798632774,-262.01382215,0.000109,2]
[334150042,1722798632784,-980.00114748,0.000109,2]
[334150043,1722798632794,-154.54,0.0001099,2]
[334150044,1722798632816,-1089.55055981,0.00010999,3]
[334150045,1722798632826,-465018.04209792,0.00011,2]
[334150046,1722798632846,-3297.6944,0.00011,2]
[334150047,1722798632859,-798.58522338,0.00011,2]
[334150123,1722798638237,-459.05566912,0.00011,2]
[334150127,1722798638361,-2970.70379158,0.00011,2]
[334150132,1722798639025,-835.77,0.00011,2]
[334150133,1722798639037,-55578.65999997,0.00011,2]
[334150134,1722798639841,-255.3477856,0.00011,2]
[334150135,1722798639853,-330.200041,0.00011,2]
[334150136,1722798639865,-2519.73516119,0.00011,2]
[334150137,1722798639876,-2716.9,0.00011,2]
[334150138,1722798639887,-1508.28668841,0.00011,2]
[334150142,1722798640432,-227.61995131,0.000105,2]
[334150143,1722798640442,-3255.75850982,0.00011,2]
[334150144,1722798640455,-906.29466241,0.00011,2]
[334150145,1722798640466,-336.861378,0.00011,2]
[334150146,1722798640546,-4620.65287364,0.00011,2]
[334150147,1722798640567,-1795092.83039033,0.00011,2]
[334150148,1722798640578,-250.0,0.00011,2]
[334150149,1722798640589,-353448.86182958,0.00011,2]
[334150150,1722798640599,-2273.724,0.00011,2]
[334150151,1722798640609,-550.0,0.00011,2]
[334150152,1722798640619,-2393.36923,0.00011,2]
[334150153,1722798640629,-250.0,0.00011013,2]
[334150154,1722798640638,-155.0,0.00011105,2]
[334150155,1722798640648,-2882.01225543,0.00011105,2]
[334150156,1722798640657,-349.35447946,0.00011161,2]
[334150157,1722798640667,-9162.85969329,0.00011186,2]
[334150158,1722798640678,-799.94,0.00011201,2]
[334150159,1722798640688,-953.33498772,0.00011206,2]
[334150160,1722798640698,-3808.20460502,0.00011206,2]
[334150161,1722798640707,-250.0,0.00011248,2]
[334150162,1722798640716,-499.99,0.00011324,2]
[334150163,1722798640726,-2839.13560359,0.00011384,2]
[334150164,1722798640736,-829.42511267,0.0001144,2]
[334150165,1722798640746,-9265.76765772,0.0001144,2]
[334150166,1722798640756,-805.48865756,0.0001144,2]
[334150167,1722798640766,-510.87707945,0.0001144,2]
[334150168,1722798640776,-174622.88187746,0.0001144,2]
[334150169,1722798640786,-158.84273734,0.0001144,2]
[334150170,1722798640795,-766.195191,0.0001144,2]
[334150171,1722798640812,-1500.0,0.00011581,5]
[334150172,1722798640822,-327.15,0.00011594,2]
[334150173,1722798640831,-23890.0,0.00011683,2]
[334150174,1722798640841,-3371.72,0.00011683,2]
[334150175,1722798640849,-150.0,0.00011691,2]
[334150176,1722798640857,-249.57,0.00011726,2]
[334150177,1722798640866,-153.89,0.00011798,2]
[334150178,1722798640876,-150.99,0.00011842,2]
[334150179,1722798640886,-18212.0,0.00012042,2]
[334150180,1722798640895,-2393.36924,0.0001209,2]
[334150181,1722798640905,-174.89,0.00012254,2]
[334150182,1722798640915,-150.0,0.00012301,2]
[334150183,1722798640925,-8460.98,0.00012346,2]
[334150184,1722798640934,-154.063,0.00012346,2]
[334150185,1722798640945,-5000.0,0.0001236,2]
[334150186,1722798640955,-2500.85158559,0.0001236,2]
[334150187,1722798640965,-2383.95531201,0.00012391,2]
[334150188,1722798640974,-1112.51849528,0.00012397,2]
[334150189,1722798640984,-600.0,0.00012476,2]
[334150190,1722798640994,-1117.71071783,0.00012581,2]
[334150191,1722798641003,-215.92897582,0.00012666,2]
[334150192,1722798641013,-484.69898026,0.00012681,2]
[334150193,1722798641023,-374.10793525,0.0001269,2]
[334150194,1722798641033,-188.0,0.0001269,2]
[334150195,1722798641043,-309.43972472,0.0001269,2]
[334150196,1722798641059,-207.36545677,0.00012696,2]
[334150197,1722798641069,-296.57,0.00012697,2]
[334150198,1722798641079,-296.57,0.000127,2]
[334150199,1722798641088,-296.57,0.00012704,2]
[334150200,1722798641098,-296.57,0.00012707,2]
[334150201,1722798641108,-296.57,0.0001271,2]
[334150202,1722798641118,-296.57,0.00012714,2]
[334150203,1722798641127,-296.57,0.00012717,2]
[334150204,1722798641137,-296.57,0.0001272,2]
[334150205,1722798641147,-296.57,0.00012724,2]
[334150206,1722798641157,-296.57,0.00012727,2]
[334150207,1722798641166,-296.57,0.0001273,2]
[334150208,1722798641176,-296.57,0.00012734,2]
[334150209,1722798641186,-296.57,0.00012737,2]
[334150210,1722798641195,-296.57,0.0001274,2]
[334150211,1722798641205,-296.57,0.00012744,2]
[334150212,1722798641219,-296.57,0.00012747,2]
[334150213,1722798641228,-475.70637676,0.00012749,2]
[334150214,1722798641237,-212.56006731,0.00012749,2]
[334150215,1722798641247,-296.57,0.0001275,2]
[334150216,1722798641257,-296.57,0.00012754,2]
[334150217,1722798641266,-296.57,0.00012757,2]
[334150218,1722798641275,-296.57,0.0001276,2]
[334150219,1722798641286,-157.21,0.00012893,2]
[334150220,1722798641296,-264.5376933,0.00012924,2]
[334150221,1722798641312,-368.98,0.00012972,2]
[334150222,1722798641321,-155.01924562,0.00012995,2]
[334150223,1722798641331,-229.02890474,0.00013,2]
[334150224,1722798641341,-600.0,0.00013,2]
[334150225,1722798641351,-249.57,0.00013192,2]
[334150226,1722798641360,-3932.5619052,0.00013303,2]
[334150227,1722798641370,-646.27612517,0.00013333,2]
[334150228,1722798641379,-2393.36924,0.0001334,2]
[334150229,1722798641389,-305430.978891,0.000138,2]
[334150230,1722798641399,-327.15,0.00013858,2]
[334150231,1722798641408,-4103.05217891,0.00013879,2]
[334150232,1722798641418,-386426.855492,0.000139,2]
[334150233,1722798641428,-151.0,0.000139,2]
[334150234,1722798641438,-151.0,0.000139,2]
[334150235,1722798641447,-151.0,0.000139,2]
[334150236,1722798641457,-2480.303668,0.000139,2]
[334150237,1722798641467,-171.87,0.00013973,2]
[334150238,1722798641477,-174.8,0.00013973,2]
[334150239,1722798641486,-292.62,0.00013973,2]
[334150240,1722798641495,-166.38,0.00013973,2]
[334150241,1722798641505,-168.83,0.00014009,2]
[334150242,1722798641515,-600.0,0.00014036,2]
[334150243,1722798641524,-153.89,0.00014158,2]
[334150244,1722798641534,-1144.0,0.00014411,2]
[334150245,1722798641544,-2393.36924,0.0001458,2]
[334150246,1722798641561,-368.98,0.00014594,2]
[334150247,1722798641570,-249.57,0.00014658,2]
[334150248,1722798641580,-870.0,0.00015,2]
[334150249,1722798641589,-341.30015634,0.00015,4]
[334150250,1722798641599,-2529.0,0.00015,2]
[334150251,1722798641607,-650.0,0.00015,2]
[334150252,1722798641617,-600.0,0.00015595,2]
[334150253,1722798641627,-167.0,0.00015831,2]
[334150254,1722798641637,-167.0,0.00015831,2]
[334150255,1722798641647,-2393.36924,0.0001584,2]
[334150256,1722798641657,-155.0,0.00015999,2]
[334150257,1722798641667,-327.15,0.00016122,2]
[334150258,1722798641677,-249.57,0.00016124,2]
[334150259,1722798641687,-368.98,0.00016215,2]
[334150260,1722798641697,-211.54413421,0.00016358,2]
[334150261,1722798641707,-211.54413421,0.00016425,2]
[334150262,1722798641717,-11444.4621322,0.00016438,7]
[334150263,1722798641727,-45460.0,0.00016438,7]
[334150264,1722798641736,-79574.8605781,0.00016581,7]
[334150265,1722798641746,-151.0,0.00016581,2]
[334150266,1722798641756,-3615.51,0.000166,2]
[334150267,1722798641766,-8878.0526973,0.00016711,2]
[334150268,1722798641775,-365.42577775,0.00016897,2]
[334150269,1722798641785,-3305.91,0.00016986,2]